bitfinex/quotes_ETHUSD_20260313
["timestamp","ask_amount","ask_price","bid_price","bid_amount"]
[1773370676385,1.34128969,2105.5,2104.8,0.0011]
[1773370677410,1.34128969,2105.5,2104.8,1.62707897]
[1773370677785,1.34128969,2105.5,2104.8,0.43932064]
[1773370677985,1.34128969,2105.5,2104.9,1.713]
[1773370678309,1.34128969,2105.3,2104.9,1.713]
[1773370680321,2.52877904,2105.3,2104.9,2.9006933]
[1773370680500,2.52877271,2105.3,2105.0,1.712]
[1773370680697,1.34128969,2105.3,2105.0,1.712]
[1773370680901,2.52877886,2105.3,2105.0,1.712]
[1773370681710,2.52877886,2105.3,2104.9,1.61574987]
[1773370681711,1.34128969,2105.2,2104.8,0.0011]
[1773370682019,1.34128969,2105.2,2104.9,1.712]
[1773370682824,1.34128969,2105.0,2104.9,1.712]
[1773370684317,1.34128969,2105.0,2104.9,1.7131]
[1773370684997,1.34128969,2105.0,2104.9,0.0011]
[1773370685191,1.34128969,2105.0,2104.9,1.7131]
[1773370685392,2.52887114,2105.2,2104.9,1.7131]
[1773370686990,0.001,2105.3,2104.9,2.12128252]
[1773370687194,1.34228969,2105.3,2104.9,2.12128252]
[1773370687623,1.34228969,2105.3,2104.9,1.7131]
[1773370689723,1.18753562,2105.2,2104.9,1.7131]
[1773370689922,2.52882531,2105.2,2104.9,1.7131]
[1773370691448,1.1885248,2105.3,2104.9,3.29285776]
[1773370691656,1.1885248,2105.3,2105.0,0.39206741]
[1773370692254,1.34128969,2105.4,2105.0,0.39206741]
[1773370692924,1.34128969,2105.5,2105.1,0.38889109]
[1773370694249,1.34128969,2105.7,2105.2,0.38574811]
[1773370694645,1.18817468,2105.9,2105.5,0.38204313]
[1773370694847,1.34128969,2106.1,2105.7,0.38204313]
[1773370695151,2.52831984,2106.1,2105.7,0.38204313]
[1773370695726,1.18703015,2106.1,2105.7,0.38204313]
[1773370695963,1.18697179,2106.2,2105.7,0.38204313]
[1773370697196,1.18697179,2106.2,2105.8,0.37472482]
[1773370698261,1.18697179,2106.2,2105.9,1.712]
[1773370698462,2.52826148,2106.2,2105.9,1.712]
[1773370698659,1.18697179,2106.2,2105.9,1.712]
[1773370698864,1.18892562,2106.3,2105.9,2.07945748]
[1773370699090,1.18892562,2106.3,2105.9,1.712]
[1773370699392,0.002,2106.3,2105.9,1.712]
[1773370700176,1.34328969,2106.3,2105.9,1.712]
[1773370700976,0.002,2106.3,2106.0,0.3590544]
[1773370702910,0.002,2106.3,2106.0,1.54613729]
[1773370703140,0.002,2106.8,2106.1,0.34996986]
[1773370703404,0.002,2106.8,2106.3,1.53337117]
[1773370703405,2.4631475,2106.8,2106.3,1.53337117]
[1773370703596,0.002,2106.8,2106.5,0.80245231]
[1773370703785,0.002,2106.9,2106.6,1.711]
[1773370703984,0.002,2106.9,2106.6,2.05745573]
[1773370704588,0.002,2106.9,2106.7,0.80245231]
[1773370704800,2.46301195,2107.1,2106.7,0.80245231]
[1773370704801,1.18846949,2107.1,2106.7,1.32093401]
[1773370704984,1.27451185,2107.0,2106.6,1.711]
[1773370705920,1.27451185,2106.8,2106.7,1.711]
[1773370706085,1.27451185,2106.8,2106.1,2.67685514]
[1773370706286,2.46104432,2107.0,2106.4,0.6874224]
[1773370706985,2.46103884,2107.0,2106.4,0.6874224]
[1773370707186,2.46103884,2107.0,2106.5,1.711]
[1773370707807,2.46103884,2107.0,2106.5,3.19227759]
[1773370708010,2.46104384,2107.0,2106.6,1.18674641]
[1773370708188,2.46104384,2107.0,2106.5,1.86558493]
[1773370708402,2.46104384,2107.0,2106.6,1.711]
[1773370708634,0.002,2106.8,2106.6,1.711]
[1773370710434,0.002,2106.8,2106.6,3.56372132]
[1773370712611,0.002,2106.8,2106.6,1.711]
[1773370712831,1.27651185,2106.8,2106.2,1.18696121]
[1773370713007,1.27651185,2106.8,2106.2,1.84451252]
[1773370713208,1.27651185,2106.8,2106.3,0.65755131]
[1773370714023,1.27651185,2106.8,2106.4,1.712]
[1773370714511,1.27451185,2106.6,2106.1,0.65017667]
[1773370714698,1.27451185,2106.6,2106.1,0.001]
[1773370714912,1.27451185,2106.6,2106.1,1.18801345]
[1773370715311,1.27451185,2106.6,2106.1,1.83719012]
[1773370715511,1.27451185,2106.6,2106.2,0.04747887]
[1773370716026,1.27451185,2106.6,2106.3,1.712]
[1773370716420,1.27451185,2106.6,2106.1,0.001]
[1773370716421,2.4613146,2106.5,2106.1,0.001]
[1773370716616,2.4613146,2106.5,2106.2,1.712]
[1773370716819,1.27451185,2106.4,2106.2,1.712]
[1773370719817,2.46120193,2106.7,2106.2,3.52758205]
[1773370720029,1.18866198,2106.8,2106.3,0.67611488]
[1773370720210,2.46317383,2106.8,2106.3,0.67611488]
[1773370720912,2.46317383,2106.8,2106.1,4.74907345]
[1773370720913,1.27451185,2106.6,2106.4,1.713]
[1773370721238,1.27451185,2106.7,2106.4,1.713]
[1773370721422,1.18864424,2106.8,2106.4,2.95069732]
[1773370721609,1.27451185,2106.7,2106.4,1.713]
[1773370721937,1.27651185,2106.7,2106.4,1.713]
[1773370722837,0.002,2106.7,2106.4,1.713]
[1773370723417,0.002,2106.7,2106.4,2.95069732]
[1773370723812,0.002,2106.7,2106.4,2.99817168]
[1773370724138,0.002,2106.7,2106.4,2.95069732]
[1773370724916,1.18869008,2106.7,2106.4,2.95069732]
[1773370725118,1.18869008,2106.7,2106.4,1.713]
[1773370725418,2.53882551,2106.7,2106.4,1.713]
[1773370725831,1.35213543,2106.7,2106.4,1.713]
[1773370726213,1.35213543,2106.7,2106.3,0.001]
[1773370726417,1.35213543,2106.7,2106.4,1.714]
[1773370727243,1.18871085,2106.7,2106.4,3.05524658]
[1773370728024,1.18869465,2106.7,2106.4,3.05524658]
[1773370728220,2.53883008,2106.7,2106.4,1.714]
[1773370728425,1.18869465,2106.7,2106.4,1.714]
[1773370729147,2.53883008,2106.7,2106.4,1.714]
[1773370729724,2.53883008,2106.7,2106.4,4.24210276]
[1773370729725,0.002,2106.7,2106.4,4.24210276]
[1773370730130,0.002,2106.7,2106.5,1.34124658]
[1773370731653,0.002,2106.7,2106.5,2.52804804]
[1773370732160,0.002,2106.7,2106.3,1.41749511]
[1773370732342,0.002,2106.7,2106.6,1.715]
[1773370732733,1.46684067,2106.7,2106.3,0.001]
[1773370732959,1.46684067,2106.7,2106.3,1.46497172]
[1773370733540,1.46684067,2106.7,2106.3,0.001]
[1773370733740,2.65158708,2106.6,2106.3,0.001]
[1773370733951,2.65158708,2106.6,2106.4,1.715]
[1773370735436,1.46484067,2106.6,2106.4,1.715]
[1773370737260,1.46484067,2106.6,2106.5,0.001]
[1773370737665,1.46484067,2106.6,2106.5,1.717]
[1773370737957,1.46684067,2106.7,2106.3,0.001]
[1773370740262,1.46484067,2106.5,2106.3,0.001]
[1773370740564,1.46484067,2106.5,2106.4,1.716]
[1773370743372,2.65164342,2106.5,2106.4,1.716]
[1773370744168,1.1867894,2106.6,2106.4,1.716]
[1773370745060,1.1867894,2106.6,2106.3,1.41749511]
[1773370745264,1.1867894,2106.6,2106.4,1.717]
[1773370745577,6.21360894,2106.7,2106.4,1.717]
[1773370745578,2.65356131,2106.7,2106.4,1.717]
[1773370745763,1.46484067,2106.6,2106.4,1.717]
[1773370747474,1.46484067,2106.5,2106.4,1.717]
[1773370750371,1.18873662,2106.7,2106.4,1.717]
[1773370750682,1.46484067,2106.6,2106.4,1.718]
[1773370750884,1.46684067,2106.6,2106.4,1.718]
[1773370751215,0.002,2106.6,2106.4,1.718]
[1773370751691,1.46684067,2106.6,2106.4,1.718]
[1773370752377,1.46484067,2106.5,2106.4,1.718]
[1773370754883,1.46484067,2106.4,2106.3,0.001]
[1773370756122,1.46484067,2106.4,2106.1,0.001]
[1773370756834,1.18691544,2106.3,2106.1,0.001]
[1773370757330,1.18691544,2106.3,2106.2,1.719]
[1773370758820,2.65171076,2106.4,2106.2,1.719]
[1773370759027,2.65170998,2106.4,2106.2,1.719]
[1773370761424,1.18686931,2106.4,2106.2,1.719]
[1773370762402,2.47388516,2106.4,2106.2,1.719]
[1773370764023,2.47588516,2106.4,2106.2,1.719]
[1773370766007,0.002,2106.4,2106.2,3.0850594]
[1773370767721,0.002,2106.4,2106.2,1.719]
[1773370768118,0.002,2106.4,2106.2,3.0850594]
[1773370769111,0.002,2106.4,2106.3,1.3660594]
[1773370769421,1.28901585,2106.4,2106.2,1.719]
[1773370769610,1.28901585,2106.4,2106.1,0.001]
[1773370770513,2.47393129,2106.3,2106.1,0.001]
[1773370770815,2.47393129,2106.3,2106.2,1.722]
[1773370771197,2.47393129,2106.3,2106.1,0.001]
[1773370772222,2.47393129,2106.3,2105.7,4.74901157]
[1773370772223,1.28701585,2106.2,2105.6,1.3670594]
[1773370772391,1.28701585,2106.2,2105.7,1.722]
[1773370773519,1.28701585,2106.0,2105.7,1.722]
[1773370775129,1.28701585,2106.0,2105.6,1.3670594]
[1773370775130,1.28701585,2106.0,2105.8,1.722]
[1773370775496,2.47414046,2106.0,2105.8,1.722]
[1773370776538,2.47414046,2106.0,2105.8,1.723]
[1773370776830,6.03436868,2106.5,2106.0,1.3660594]
[1773370777017,6.03436868,2106.5,2106.1,1.3660594]
[1773370778508,1.18685909,2106.4,2106.1,1.3660594]
[1773370778699,2.47383581,2106.5,2106.1,1.3660594]
[1773370780431,1.28701585,2106.2,2105.8,0.001]
[1773370780727,1.28701585,2106.0,2105.8,0.001]
[1773370781133,1.28701585,2106.0,2105.6,0.001]
[1773370781294,1.28701585,2106.0,2105.6,1.3670594]
[1773370781724,1.28701585,2106.0,2105.7,1.715]
[1773370783746,1.18714088,2105.9,2105.7,1.715]
[1773370785133,1.18714088,2105.9,2105.7,3.02779664]
[1773370786047,6.11408455,2106.2,2105.7,3.02779664]
[1773370786534,4.74811262,2106.2,2105.7,3.02779664]
[1773370786716,1.36597193,2106.1,2105.7,3.02779664]
[1773370788431,2.55305645,2106.0,2105.7,3.02779664]
[1773370788606,2.55305645,2106.0,2105.7,1.715]
[1773370788929,1.36597193,2105.9,2105.7,1.715]
[1773370789115,1.36597193,2105.9,2105.6,0.001]
[1773370790211,1.36597193,2105.9,2105.7,1.718]
[1773370790410,1.18719726,2105.8,2105.7,1.718]
[1773370791030,2.59536099,2105.8,2105.7,1.718]
[1773370791236,2.59536099,2105.8,2105.6,0.001]
[1773370791727,1.40816373,2105.7,2105.6,0.001]
[1773370792133,2.59536099,2105.8,2105.6,0.001]
[1773370792516,1.41016373,2106.0,2105.7,1.718]
[1773370793233,1.41016373,2106.0,2105.6,0.001]
[1773370794838,2.59530461,2105.9,2105.6,0.001]
[1773370796551,2.59530461,2105.9,2105.7,1.718]
[1773370797211,2.59530461,2105.9,2105.6,0.001]
[1773370798923,2.59530461,2105.9,2105.7,1.717]
[1773370799128,1.40816373,2105.8,2105.5,1.38800542]
[1773370800753,1.18911499,2106.0,2105.5,2.57534347]
[1773370800955,0.002,2106.0,2105.6,1.43449782]
[1773370801289,1.18909062,2106.0,2105.8,1.38700542]
[1773370801435,0.002,2106.2,2105.8,1.38700542]
[1773370801753,1.40816373,2106.0,2105.5,0.001]
[1773370801960,1.40816373,2106.0,2105.9,1.717]
[1773370802137,1.40816373,2106.0,2105.5,0.001]
[1773370802320,1.40816373,2106.0,2105.5,1.38800542]
[1773370802520,1.40816373,2106.0,2105.8,0.0011]
[1773370802748,1.18714088,2105.9,2105.8,0.0011]
[1773370802957,6.15657103,2106.0,2105.8,0.0011]
[1773370802958,1.18712307,2106.0,2105.8,0.0011]
[1773370803254,0.002,2106.2,2105.9,1.38700542]
[1773370803428,1.18897192,2106.2,2105.8,0.0011]
[1773370803820,1.18897192,2106.2,2105.8,1.38810542]
[1773370804043,1.18899189,2106.2,2105.8,1.38810542]
[1773370804347,1.18899189,2106.2,2106.0,1.38700542]
[1773370804348,1.18897808,2106.2,2106.0,1.38700542]
[1773370808535,1.41016373,2106.2,2105.8,1.38810542]
[1773370808777,0.002,2106.2,2105.9,1.38700542]
[1773370809337,1.18880996,2106.5,2106.0,1.38700542]
[1773370809633,1.18880504,2106.5,2106.2,1.38700542]
[1773370810251,0.002,2106.5,2106.2,1.38700542]
[1773370811071,0.002,2106.5,2106.3,1.38700542]
[1773370812855,0.002,2106.6,2106.3,1.38700542]
[1773370813451,0.002,2106.6,2106.5,1.38700542]
[1773370816082,0.002,2106.6,2106.5,2.57380817]
[1773370816740,0.002,2106.6,2106.5,1.38700542]
[1773370817444,0.002,2106.6,2106.5,2.57380817]
[1773370819360,0.002,2106.6,2106.5,1.38700542]
[1773370819965,0.002,2106.6,2106.5,2.57380817]
[1773370820179,0.002,2106.6,2106.4,1.38700542]
[1773370820380,0.002,2106.9,2106.7,1.38700542]
[1773370820697,0.002,2107.2,2106.9,1.37658411]
[1773370820848,0.002,2107.2,2107.0,3.09158411]
[1773370822051,0.002,2107.2,2107.0,4.27810523]
[1773370822689,1.38344229,2107.1,2106.7,1.37658411]
[1773370822977,1.38344229,2107.1,2106.8,1.715]
[1773370823478,1.38344229,2107.1,2106.9,1.715]
[1773370824475,2.56994352,2107.1,2106.9,1.715]
[1773370824675,1.38144229,2107.0,2106.4,2.5634123]
[1773370824980,1.38144229,2107.0,2106.4,2.56343936]
[1773370825351,1.38144229,2107.0,2106.4,1.37658411]
[1773370825678,1.38144229,2107.0,2106.5,0.04747211]
[1773370825878,1.38144229,2107.0,2106.6,1.716]
[1773370827180,2.56801972,2106.9,2106.7,0.001]
[1773370827345,2.57001972,2106.9,2106.7,0.001]
[1773370827546,1.18857743,2106.9,2106.7,0.001]
[1773370827963,2.57001972,2106.9,2106.7,0.001]
[1773370828262,1.38144229,2106.8,2106.7,0.001]
[1773370828460,1.18857743,2106.9,2106.7,1.717]
[1773370829182,1.38344229,2106.9,2106.7,1.717]
[1773370830052,1.38344229,2106.9,2106.5,0.04847211]
[1773370830258,1.38344229,2106.9,2106.5,0.001]
[1773370831156,1.18663375,2106.8,2106.5,0.001]
[1773370831478,1.18663375,2106.8,2106.6,1.716]
[1773370831479,1.38144229,2106.7,2106.6,1.716]
[1773370831684,1.38144229,2106.7,2106.2,0.001]
[1773370833061,1.38144229,2106.7,2106.3,1.716]
[1773370833379,1.18674641,2106.6,2106.3,1.716]
[1773370833586,2.5681887,2106.6,2106.3,1.716]
[1773370834781,1.38144229,2106.5,2106.3,1.716]
[1773370835762,2.56827685,2106.5,2106.3,1.716]
[1773370837488,2.56827685,2106.5,2106.2,0.001]
[1773370837489,1.38144229,2106.4,2106.2,0.001]
[1773370837880,2.56831843,2106.4,2106.2,0.001]
[1773370838390,1.38144229,2106.3,2105.8,0.0011]
[1773370838684,1.38144229,2105.9,2105.5,0.001]
[1773370838864,1.38144229,2105.9,2105.6,1.6891]
[1773370839767,1.18719726,2105.8,2105.6,1.6891]
[1773370840184,2.56862488,2105.9,2105.6,1.6891]
[1773370840488,2.56862488,2105.9,2105.8,0.001]
[1773370840685,1.38144229,2105.8,2105.6,1.6891]
[1773370842089,1.38144229,2105.7,2105.5,0.001]
[1773370842991,1.38144229,2106.1,2105.6,1.37658411]
[1773370843362,5.54976583,2106.3,2105.6,1.42407651]
[1773370843363,2.56840233,2106.3,2105.6,1.42407651]
[1773370843562,2.56840233,2106.3,2105.8,1.3064823]
[1773370844563,1.18689827,2106.4,2105.9,1.3064823]
[1773370844770,6.08785004,2106.5,2106.1,1.3064823]
[1773370844771,1.18884284,2106.5,2106.1,1.3064823]
[1773370844995,1.33854362,2106.4,2105.9,1.3064823]
[1773370846180,2.52544773,2106.4,2106.0,1.3064823]
[1773370847076,2.52544773,2106.4,2105.9,1.18710878]
[1773370847279,1.33854362,2106.3,2105.7,1.18721154]
[1773370847501,1.33854362,2106.3,2106.0,1.704]
[1773370848695,2.52549737,2106.3,2106.0,1.704]
[1773370849995,1.33854362,2106.2,2106.0,1.704]
[1773370851604,2.46831856,2106.1,2105.6,1.18726866]
[1773370851773,2.46831856,2106.1,2105.6,1.18730846]
[1773370851774,1.28129041,2106.0,2105.6,1.18730846]
[1773370851975,1.28129041,2106.0,2105.7,1.708]
[1773370854497,1.28129041,2106.0,2105.8,0.001]
[1773370855778,2.46839007,2106.0,2105.8,0.001]
[1773370856976,2.46839007,2106.0,2105.9,1.71]
[1773370857914,2.46839007,2106.0,2105.8,0.001]
[1773370858208,1.28129041,2105.9,2105.8,0.001]
[1773370858700,2.46848767,2105.8,2105.5,0.001]
[1773370859076,2.46848767,2105.8,2105.6,1.711]
[1773370859898,1.18719726,2105.8,2105.6,1.711]
[1773370860510,2.46845797,2105.9,2105.6,2.94764221]
[1773370860678,0.002,2106.2,2105.7,1.26537588]
[1773370860874,0.002,2106.2,2105.7,1.23664221]
[1773370861611,1.28329041,2106.2,2105.7,1.23664221]
[1773370861807,1.28329041,2106.2,2105.4,2.90040747]
[1773370861808,1.28129041,2106.0,2105.4,2.90040747]
[1773370861988,1.28329041,2106.2,2105.4,2.90040747]
[1773370862189,0.002,2106.2,2105.5,11.63877]
[1773370862497,0.002,2106.2,2105.5,9.981907]
[1773370862693,0.002,2106.2,2105.6,1.98905958]
[1773370862910,0.002,2106.2,2105.7,0.01693478]
[1773370863597,0.002,2106.2,2105.8,1.23664221]
[1773370864705,0.002,2106.2,2105.9,1.18714088]
[1773370864897,0.002,2106.2,2106.0,1.713]
[1773370865400,0.002,2106.2,2106.0,2.94964221]
[1773370867708,0.002,2106.2,2106.0,1.713]
[1773370867913,2.08303996,2106.1,2105.8,0.0011]
[1773370868082,0.002,2106.2,2105.5,0.0011]
[1773370868083,1.28129041,2105.8,2105.5,0.0011]
[1773370868487,1.28129041,2105.6,2105.3,0.0011]
[1773370868909,2.46864369,2105.6,2105.3,0.0011]
[1773370869305,1.28129041,2105.5,2105.3,0.0011]
[1773370870700,1.28129041,2105.5,2105.4,1.713]
[1773370870902,2.46865683,2105.5,2105.4,1.713]
[1773370871220,2.46865683,2105.5,2105.1,0.0011]
[1773370871714,1.28129041,2105.4,2105.1,0.0011]
[1773370872818,1.28129041,2105.4,2105.2,1.713]
[1773370873022,2.46876962,2105.3,2105.2,1.713]
[1773370873314,2.46876962,2105.3,2105.1,0.0011]
[1773370874108,1.18746623,2105.4,2105.1,0.0011]
[1773370874622,2.46868848,2105.5,2105.1,0.0011]
[1773370874819,2.46868848,2105.5,2105.2,1.714]
[1773370876107,2.46868848,2105.5,2105.1,0.0011]
[1773370877293,1.28129041,2106.0,2105.1,1.23774221]
[1773370878025,1.28129041,2106.0,2105.3,1.23664221]
[1773370879016,1.28129041,2106.0,2105.3,1.23774221]
[1773370879320,1.28129041,2105.8,2105.3,1.23774221]
[1773370879623,1.28129041,2105.8,2105.4,1.713]
[1773370881925,1.18725364,2105.7,2105.4,1.713]
[1773370883129,2.46089197,2105.7,2105.4,1.713]
[1773370884614,4.74901457,2105.8,2105.4,2.87356832]
[1773370884814,6.0226529,2105.8,2105.4,2.87356832]
[1773370885409,1.27363833,2105.7,2105.4,1.713]
[1773370886133,1.27363833,2105.7,2105.4,2.87356832]
[1773370886332,2.46174726,2106.0,2105.5,1.16056832]
[1773370887129,2.46172865,2106.0,2105.6,1.16056832]
[1773370887335,1.18809032,2106.0,2105.6,1.16056832]
[1773370888035,1.18808959,2106.0,2105.6,1.16056832]
[1773370889013,2.46172792,2106.0,2105.6,1.16056832]
[1773370891914,0.001,2105.8,2105.6,1.16056832]
[1773370893434,0.001,2105.8,2105.7,1.16056832]
[1773370895451,0.001,2105.8,2105.5,1.16056832]
[1773370895651,0.001,2105.8,2105.6,1.16056832]
[1773370896530,0.001,2105.8,2105.5,1.16056832]
[1773370898153,0.001,2105.8,2105.3,1.18857771]
[1773370898154,1.27363833,2105.6,2105.3,1.18857771]
[1773370898450,0.001,2105.8,2105.4,1.20806523]
[1773370898751,1.1881989,2105.8,2105.4,1.20806523]
[1773370898927,0.001,2105.8,2105.4,1.20806523]
[1773370899346,0.001,2105.8,2105.6,1.16056832]
[1773370901658,0.001,2105.8,2105.6,2.34785346]
[1773370901837,0.001,2106.0,2105.7,1.16056832]
[1773370902037,0.001,2106.0,2105.9,1.16056832]
[1773370902635,1.50768533,2106.5,2105.9,1.16056832]
[1773370902835,0.23991897,2106.5,2106.1,1.16056832]
[1773370903428,2.46042461,2106.6,2106.1,1.16056832]
[1773370904249,2.46038567,2106.6,2106.2,2.32139233]
[1773370904464,0.001,2106.3,2106.2,1.13442054]
[1773370909651,1.22339768,2106.7,2106.3,1.13442054]
[1773370909967,2.41008818,2106.7,2106.3,1.13442054]
[1773370910265,1.22339768,2106.7,2106.3,1.13442054]
[1773370910466,1.22339768,2106.7,2106.3,2.32131228]
[1773370910467,2.41008964,2106.7,2106.3,2.32131228]
[1773370911041,2.41008964,2106.7,2106.3,1.13442054]
[1773370911230,1.22339768,2106.7,2106.4,1.18685909]
[1773370911456,1.15703451,2106.5,2106.2,1.22461905]
[1773370911659,1.15703451,2106.5,2106.3,1.713]
[1773370911973,1.15703451,2106.5,2106.0,1.22461905]
[1773370912945,2.3438936,2106.4,2106.0,1.22461905]
[1773370913244,2.3438936,2106.4,2106.1,1.711]
[1773370914471,1.15703451,2106.3,2106.0,1.22461905]
[1773370914669,1.15703451,2106.3,2106.2,1.711]
[1773370919150,2.34394995,2106.3,2106.0,0.001]
[1773370920165,1.15703451,2106.2,2106.0,0.001]
[1773370920468,1.15703451,2106.2,2105.8,1.1881931]
[1773370920668,1.15703451,2106.2,2105.8,2.41281215]
[1773370920842,1.15703451,2106.2,2105.9,1.22461905]
[1773370921264,1.15703451,2106.2,2105.8,0.001]
[1773370921565,4.74966177,2106.4,2105.8,1.22561905]
[1773370921566,1.15903451,2106.4,2105.8,1.22561905]
[1773370921749,1.18890399,2106.4,2106.0,1.22461905]
[1773370921946,0.002,2106.4,2106.0,1.22461905]
[1773370922259,2.34575311,2106.7,2106.2,1.22461905]
[1773370922633,2.34573549,2106.7,2106.2,1.22461905]
[1773370923261,2.34573549,2106.7,2106.3,2.93661905]
[1773370924263,1.15703451,2106.6,2106.1,1.22461905]
[1773370924464,1.99030912,2106.7,2105.9,0.04748298]
[1773370924465,1.15703451,2106.4,2105.9,1.22461905]
[1773370924653,1.15703451,2106.2,2106.0,1.712]
[1773370925172,1.15703451,2106.2,2105.8,1.22561905]
[1773370926651,4.74763835,2106.4,2106.0,1.22461905]
[1773370926965,1.18685909,2106.4,2106.0,1.22461905]
[1773370930074,2.3438936,2106.4,2106.0,1.22571905]
[1773370930274,0.001,2106.2,2106.0,1.22571905]
[1773370931343,1.15903451,2106.7,2106.1,1.22461905]
[1773370931553,1.1867914,2106.6,2106.1,1.22461905]
[1773370931773,0.002,2106.7,2106.1,1.22461905]
[1773370932960,0.002,2106.7,2106.3,1.22461905]
[1773370933481,0.002,2106.7,2106.5,1.22461905]
[1773370933678,0.002,2106.7,2106.6,2.93261905]
[1773370933866,0.002,2106.9,2106.7,1.22461905]
[1773370935250,0.002,2107.3,2106.9,1.22461905]
[1773370935469,0.002,2107.3,2107.1,1.22461905]
[1773370935669,0.002,2107.3,2107.2,2.93361905]
[1773370938253,0.002,2107.3,2107.2,4.12002755]
[1773370938854,0.002,2107.4,2107.3,1.22461905]
[1773370941480,0.002,2107.4,2107.3,2.41097125]
[1773370942069,0.002,2107.4,2107.3,1.22461905]
[1773370943785,1.14188744,2107.4,2107.3,1.713]
[1773370944090,0.002,2107.4,2107.3,1.713]
[1773370946063,0.002,2107.4,2107.1,1.0639203]
[1773370947294,0.002,2107.4,2107.2,1.714]
[1773370949364,1.13988744,2107.3,2107.1,0.001]
[1773370949865,0.002,2107.7,2107.2,1.0629203]
[1773370950085,0.002,2107.7,2107.3,1.11037438]
[1773370950263,0.002,2107.7,2107.3,1.0629203]
[1773370950886,0.002,2107.7,2107.4,2.7779203]
[1773370951087,0.002,2107.7,2107.5,1.0629203]
[1773370951266,0.002,2107.7,2107.5,2.24912581]
[1773370951663,0.002,2107.7,2107.6,1.0629203]
[1773370952194,0.002,2107.7,2107.4,3.96417276]
[1773370953899,0.002,2107.7,2107.5,1.716]
[1773370954198,1.14188744,2107.7,2107.5,1.716]
[1773370955171,0.002,2107.7,2107.5,1.716]
[1773370955377,0.002,2107.7,2107.5,2.7789203]
[1773370956483,0.002,2107.7,2107.6,1.717]
[1773370957595,0.23166456,2107.9,2107.7,1.0629203]
[1773370958200,0.23166456,2107.9,2107.6,2.90314174]
[1773370958803,0.23166456,2107.9,2107.6,3.96606204]
[1773370958982,0.23166456,2107.9,2107.7,1.0629203]
[1773370959181,4.74538965,2108.3,2107.8,1.0629203]
[1773370959504,1.13988744,2108.7,2107.8,1.0629203]
[1773370959696,1.13988744,2108.5,2107.8,2.24896855]
[1773370960007,1.13988744,2108.5,2107.8,1.18607029]
[1773370960410,1.13988744,2108.3,2107.7,2.24900848]
[1773370961204,4.74538965,2108.2,2107.9,1.0629203]
[1773370961411,2.32548992,2108.7,2107.9,1.0629203]
[1773370961579,4.74538965,2108.6,2107.9,1.0629203]
[1773370961784,2.3256092,2108.5,2107.9,2.24888464]
[1773370962092,2.32557053,2108.5,2108.0,2.7809203]
[1773370962491,1.13988744,2108.4,2108.0,1.718]
[1773370962693,1.13988744,2108.3,2107.5,2.24915992]
[1773370962892,1.13988744,2108.2,2107.5,2.24915992]
[1773370963984,1.1154316,2108.1,2107.6,1.719]
[1773370964180,4.74538965,2108.1,2107.6,2.84887701]
[1773370964396,4.74538965,2108.1,2107.7,1.12987701]
[1773370965107,4.74538965,2108.1,2107.7,1.17732209]
[1773370965908,1.1154316,2108.4,2107.7,1.12987701]
[1773370966116,4.74538965,2108.3,2107.8,2.31594779]
[1773370966405,4.74538965,2108.3,2107.9,1.12987701]
[1773370967987,4.74538965,2108.3,2108.0,2.31583526]
[1773370968192,4.74538965,2108.3,2108.1,1.719]
[1773370969321,4.74538965,2108.2,2108.0,1.18595825]
[1773370969616,0.002,2108.3,2108.1,1.72]
[1773370970112,0.002,2108.3,2108.1,2.90586594]
[1773370971994,0.002,2108.3,2108.1,4.00701926]
[1773370972191,0.002,2108.6,2108.1,4.00701926]
[1773370972395,4.74538965,2108.5,2108.1,4.00701926]
[1773370972594,4.74538965,2108.5,2108.2,1.10115332]
[1773370972915,1.16063541,2108.4,2108.1,2.90586594]
[1773370973311,4.74538965,2108.3,2108.2,1.10115332]
[1773370973620,4.74538965,2108.5,2108.2,1.10115332]
[1773370973987,4.74538965,2108.5,2108.1,2.95330201]
[1773370974222,4.74538965,2108.5,2108.1,4.05445533]
[1773370974724,5.90602506,2108.5,2108.1,4.05445533]
[1773370975613,5.90602506,2108.5,2108.1,2.95330201]
[1773370975820,1.16063541,2108.4,2108.1,2.95330201]
[1773370977694,1.16063541,2108.2,2107.8,1.18604629]
[1773370977929,1.20905348,2108.2,2107.8,1.18604629]
[1773370978299,1.20905348,2108.2,2107.8,2.28719961]
[1773370978300,0.04841807,2108.2,2107.8,2.28719961]
[1773370978919,0.04841807,2108.2,2107.9,1.723]
[1773370979431,0.04841807,2108.2,2107.9,2.90901012]
[1773370979432,4.74538965,2108.1,2107.9,2.90901012]
[1773370979927,2.34825797,2108.6,2108.0,1.13196826]
[1773370980124,4.74538965,2108.4,2108.0,1.13196826]
[1773370980324,0.04841807,2108.5,2108.1,1.10115332]
[1773370980503,0.002,2108.6,2108.3,1.10115332]
[1773370980693,0.002,2108.6,2108.4,1.724]
[1773370980898,1.16063541,2108.5,2108.1,1.10115332]
[1773370981098,1.16063541,2108.5,2108.2,1.724]
[1773370981295,0.05041807,2108.6,2108.2,1.724]
[1773370981823,1.23603942,2108.6,2108.2,2.90982448]
[1773370982124,0.05041807,2108.6,2108.2,4.0109778]
[1773370982317,0.002,2108.6,2108.2,4.0109778]
[1773370982520,0.002,2108.6,2108.3,1.10115332]
[1773370983146,1.18533971,2109.1,2108.3,1.10115332]
[1773370983315,1.20905348,2109.0,2108.2,4.0109778]
[1773370983634,1.20905348,2109.0,2108.3,1.10115332]
[1773370984309,1.16063541,2108.8,2108.4,1.18573325]
[1773370984525,0.04841807,2108.8,2108.4,2.28688657]
[1773370984831,0.04841807,2108.9,2108.4,2.28688657]
[1773370985139,0.04841807,2108.9,2108.5,1.10115332]
[1773370986318,0.04841807,2109.0,2108.6,2.28677411]
[1773370986520,0.04841807,2109.0,2108.7,1.726]
[1773370986721,1.20905348,2109.0,2108.7,1.726]
[1773370987033,1.20905348,2109.0,2108.8,1.726]
[1773370987234,1.20905348,2109.0,2108.3,4.7431432]
[1773370987439,1.20905348,2109.0,2108.3,5.84429652]
[1773370988433,2.34608754,2108.9,2108.4,1.727]